Cogmind - Beta 15 *** ADVENTURER MODE // 2025.05.07 @ 05:13:21 Player: Tisa Result: Self-destructed Performance ------------- Evolutions (2) 1000 Regions Visited (7) 1400 Robots Destroyed (52) 260 Value Destroyed (1221) 1221 Prototype IDs (27) 540 Alien Tech Used (0) 0 Bonus (328) 328 TOTAL SCORE: 4749 Bonus ------- Follower Combat Kills 28 Aligned with FarCom 300 Cogmind --------- Core Integrity 424/550 Matter 123/300 Energy 160/160 System Corruption 0% Temperature Cool (0) Movement Flying (108) Ox1 Location -8/Materials Parts ------- > --- POWER (1) -------- Light Nuclear Core > --- PROPULSION (4) --- Flight Unit Improved Flight Unit Cesium-ion Thruster > --- UTILITY (4) ------ Small Storage Unit Cloak of Protection > --- WEAPON (2) ------- Bore Cannon > --- INVENTORY (8) ---- Advanced Beam Rifle Rocket Launcher Rocket Launcher Datajack Datajack Peak State ------------ > --- POWER ------------ Light Ion Engine > --- PROPULSION ------- Flight Unit Improved Flight Unit Cesium-ion Thruster Xenon Bombardment Thruster > --- UTILITY ---------- Small Storage Unit Cloak of Protection > --- WEAPON ----------- Advanced Beam Rifle Bore Cannon > --- INVENTORY -------- Ion Cannon Grenade Launcher Datajack Datajack [Rating: 30] Favorites ----------- Power Light Ion Engine Engine Light Ion Engine Power Core Light Nuclear Core Propulsion Flight Unit Leg Aluminum Leg Flight Unit Flight Unit Utility Small Storage Unit Device Cloak of Protection Storage Small Storage Unit Processor Signal Interpreter Weapon Small Laser Energy Gun Small Laser Energy Cannon Ion Cannon Ballistic Gun Light Assault Rifle Ballistic Cannon Bore Cannon Launcher Grenade Launcher Special Weapon Mining Laser Special Melee Weapon Datajack Build | -11 -10 -10 -9 -9 -9 -8 -8 ------- Run | Yrd Mat Min Mat Min Exi Min Mat Slots Evolved 4 | . . . 2 . . . 2 Power . | . . . . . . . . Propulsion 2 | . . . 2 . . . . Utility 2 | . . . . . . . 2 Weapon . | . . . . . . . . Parts Attached 36 | 6 1 5 8 1 1 4 10 Power 5 | 1 . 1 1 . . . 2 Engine 3 | 1 . 1 1 . . . . Core 2 | . . . . . . . 2 Reactor . | . . . . . . . . Propulsion 14 | 2 . 2 5 1 . 2 2 Treads . | . . . . . . . . Leg 4 | 2 . 2 . . . . . Wheel . | . . . . . . . . Hover . | . . . . . . . . Flight 10 | . . . 5 1 . 2 2 Utility 3 | 1 1 . . . 1 . . Device 1 | . . . . . 1 . . Storage 1 | 1 . . . . . . . Processor 1 | . 1 . . . . . . Hackware . | . . . . . . . . Protection . | . . . . . . . . Artifact . | . . . . . . . . Weapon 14 | 2 . 2 2 . . 2 6 Energy Gun 4 | 1 . . 1 . . . 2 Energy Cannon 1 | . . . . . . 1 . Ballistic Gun 1 | 1 . . . . . . . Ballistic Cannon 2 | . . . 1 . . 1 . Launcher 3 | . . 1 . . . . 2 Special Weapon 1 | . . 1 . . . . . Impact Weapon . | . . . . . . . . Slashing Weapon . | . . . . . . . . Piercing Weapon . | . . . . . . . . Special Melee Weapon 2 | . . . . . . . 2 Unidentified Prototypes 4 | . . . 1 . . . 3 Parts Lost 5 | . . . 1 2 . 1 1 Power . | . . . . . . . . Propulsion 4 | . . . . 2 . 1 1 Utility . | . . . . . . . . Weapon 1 | . . . 1 . . . . Highest Loss Streak 2 | . . . 1 2 . 1 1 To Critical Strikes . | . . . . . . . . Average Backups 6 | 2 3 7 5 6 8 7 6 Power 1 | . 1 1 1 2 1 1 . Propulsion 1 | . 1 3 . . . . . Utility . | . . . . 1 2 2 . Weapon 2 | . 1 2 3 3 4 3 3 Tool/Special . | . . . . . . . . Unused Backups 6 | . . 3 . . . 1 2 Power 1 | . . . . . . 1 . Propulsion 2 | . . 2 . . . . . Utility 3 | . . 1 . . . . 2 Weapon . | . . . . . . . . Tool/Special . | . . . . . . . . Average Slot Usage (%) 80 | . 90 100 87 64 66 77 64 Engine 10 | . 14 14 11 11 11 11 6 Leg 10 | . 28 28 . . . . . Flight 24 | . . . 42 40 44 43 34 Device 3 | . . . . . . 11 9 Storage 11 | . 14 14 11 11 11 11 9 Processor 5 | . 5 14 11 1 . . . Energy Gun 4 | . 14 9 . . . . 1 Ballistic Gun 3 | . 14 7 2 . . . . Launcher 2 | . . 7 1 . . . . Special Weapon 1 | . . 3 6 . . . . Peak Build Rating 30 | 6 7 10 13 13 21 27 30 Average Rating 14 | 4 6 9 10 11 12 19 22 On Entrance 9 | . 6 7 9 10 13 12 19 Naked Turns . | . . . . . . . . Heaviest Build 27 | 10 10 12 20 15 13 16 27 Greatest Support 25 | 20 20 25 16 18 18 18 20 Greatest Overweight (x) 1 | . . . 1 1 . 1 1 Average Overweight (x) . | . . . . . . . . Largest Inventory Capacity 8 | 8 8 8 8 8 8 8 8 Average Capacity 7 | 6 8 8 8 8 8 8 8 Most Carried 8 | 4 7 8 8 8 8 8 8 Average Carried 6 | 2 4 7 5 6 7 7 6 Final Capacity 8 | 8 8 8 8 8 8 8 8 Final Carried 8 | 3 7 8 6 8 8 7 5 Class Distribution -------------------- 51% | Mutant 48% | Sprinter Dominant Class ---------------- Mutant | -10/Materials Mutant | -10/Mines Sprinter | -9/Materials Sprinter | -9/Mines Sprinter | -9/Exiles Sprinter | -8/Mines Sprinter | -8/Materials Resources | -11 -10 -10 -9 -9 -9 -8 -8 ----------- Run | Yrd Mat Min Mat Min Exi Min Mat Matter Collected 1293 | 94 35 226 78 256 . 112 492 Remotely . | . . . . . . . . Salvage Created 1095 | . 52 184 237 219 . 13 390 Parts 100 | . 8 28 17 11 . 6 30 Haulers Intercepted 1 | . . . . . . . 1 Recyclers Shooed . | . . . . . . . . Parts Field Recycled . | . . . . . . . . Retrieved Matter . | . . . . . . . . Parts Self-Destructed . | . . . . . . . . Prevented . | . . . . . . . . Kills | -11 -10 -10 -9 -9 -9 -8 -8 ------- Run | Yrd Mat Min Mat Min Exi Min Mat Combat Hostiles Destroyed 38 | . 3 8 7 5 . 1 14 Guns 12 | . 3 5 . 3 . . 1 Cannons 12 | . . . 6 . . 1 5 AOE 14 | . . 3 1 2 . . 8 Classes Destroyed 10 | . 2 3 2 1 . . 2 Worker 2 | . . . 1 . . . 1 Builder 3 | . . 2 . . . . 1 Tunneler 3 | . . 2 . . . 1 . Hauler 1 | . . . . . . . 1 Operator 3 | . . . . . . . 3 Watcher 2 | . 1 . 1 . . . . Swarmer 16 | . 3 6 . . . 1 6 Grunt 14 | . . 2 3 4 . . 5 Brawler 1 | . . . . 1 . . . Sentry 7 | . . . 4 . . . 3 Best Kill Streak 12 | . 3 3 8 4 . 1 12 Combat Bots Only 10 | . 3 3 6 4 . 1 10 Max Kills in Single Turn 7 | . 2 3 2 2 . 1 7 Gunslinging 1 | . 1 . . . . . . Exploded 5 | . . 3 1 2 . . 5 Melee . | . . . . . . . . Uniques/NPCs Destroyed . | . . . . . . . . Combat | -11 -10 -10 -9 -9 -9 -8 -8 -------- Run | Yrd Mat Min Mat Min Exi Min Mat Hostile Shots Fired 149 | . 16 21 33 10 . 13 56 Missed 40 | . 4 7 13 3 . 2 11 Hits 109 | . 12 14 20 7 . 11 45 Projectile 109 | . 12 14 20 7 . 11 45 Critical Strikes 2 | . . 1 1 . . . . Damage Taken 1104 | . 65 91 232 90 . 65 561 Core 212 | . . 18 47 17 . 4 126 Absorbed by Shields . | . . . . . . . . Ignored by Resistances 329 | . 24 31 64 28 . 22 160 Core Remaining (%) 91 | 100 . 92 . . . 83 . Volleys Fired 133 | . 7 26 44 12 . 7 37 Largest 2 | . 2 2 2 2 . 1 2 Hottest 108 | . 60 100 100 70 . 48 108 Shots Fired 182 | . 14 37 56 16 . 7 52 Gun 68 | . 14 26 6 12 . . 10 Cannon 50 | . . . 12 . . 7 31 Launcher 25 | . . 2 8 4 . . 11 Special 39 | . . 9 30 . . . . Kinetic 57 | . 7 9 14 . . 7 20 Thermal 86 | . 7 26 32 . . . 21 Explosive 25 | . . 2 8 4 . . 11 Electromagnetic 14 | . . . 2 12 . . . Robot Hit Streak 18 | . 7 8 12 11 . 14 18 Robot Miss Streak 3 | . 3 3 1 1 . 1 2 Penetration Max . | . . . . . . . . Secondary Targets 1 | . 1 . . . . . . Max Gunslinging Chain 1 | . 1 . . . . . . Shots Hit Robots 105 | . 9 19 23 12 . 5 37 Core Hits 77 | . 5 16 15 8 . 2 31 Critical Kills 2 | . . . . . . . 2 Critical Parts Destroyed 3 | . . . . . . 1 2 Critical Strikes 7 | . . . . . . 1 6 Destroy 7 | . . . . . . 1 6 Melee Attacks 1 | . . . . . . . 1 Impact . | . . . . . . . . Slashing . | . . . . . . . . Piercing . | . . . . . . . . Sneak Attacks . | . . . . . . . . Combat Hostiles . | . . . . . . . . Follow-up Attacks . | . . . . . . . . Damage Inflicted 3159 | . 84 383 500 281 . 88 1823 Guns 630 | . 84 158 59 149 . . 180 Cannons 722 | . . . 220 . . 88 414 Explosions 1711 | . . 153 197 132 . . 1229 Melee . | . . . . . . . . Ramming . | . . . . . . . . Kinetic 584 | . 44 28 238 . . 88 186 Thermal 694 | . 40 202 44 . . . 408 Explosive 1711 | . . 153 197 132 . . 1229 Electromagnetic 170 | . . . 21 149 . . . Impact . | . . . . . . . . Slashing . | . . . . . . . . Piercing . | . . . . . . . . Highest Corruption 1 | . . 1 . . . . . Average Corruption 1 | . . 1 . . . . . Corruption Purged . | . . . . . . . . Corruption Blocked . | . . . . . . . . Effects 9 | . . 9 . . . . . Message Errors 2 | . . 2 . . . . . Matter Fused 3 | . . 3 . . . . . Heat Flow Errors 3 | . . 3 . . . . . Energy Discharges 1 | . . 1 . . . . . Overload Shots . | . . . . . . . . Overflow Damage 54 | . . 15 . 1 . . 38 Projectiles 11 | . . . . . . . 11 Explosions 43 | . . 15 . 1 . . 27 Melee . | . . . . . . . . Knockbacks 4 | . . . . . . 2 2 Impact . | . . . . . . . . Kinetic 4 | . . . . . . 2 2 Secondary . | . . . . . . . . Self-Inflicted Damage 148 | . . . 1 18 . . 129 Shots 4 | . . . 1 1 . . 2 Rammed . | . . . . . . . . Targets Rammed . | . . . . . . . . Kicked . | . . . . . . . . Crushed . | . . . . . . . . Highest Temperature 411 | . 40 276 332 75 . 48 411 Average Temperature 86 | . 18 37 106 25 . 25 118 Received Heat Transfer 351 | . . 27 117 45 . . 162 Effects 8 | . . . 4 . . . 4 Shutdowns 1 | . . . . . . . 1 Energy Bleed 1 | . . . . . . . 1 Interference 2 | . . . 2 . . . . Matter Decay 1 | . . . . . . . 1 Damage (minor) 3 | . . . 2 . . . 1 Siege Activations . | . . . . . . . . Martial Activations . | . . . . . . . . Shielding Activations . | . . . . . . . . Robots Disrupted . | . . . . . . . . Combat Hostiles . | . . . . . . . . Robots Corrupted . | . . . . . . . . Combat Hostiles . | . . . . . . . . Parts Fried . | . . . . . . . . Impact Corruptions . | . . . . . . . . Robots Melted . | . . . . . . . . Combat Hostiles . | . . . . . . . . Parts Melted 4 | . . 1 . . . . 3 Heat Transferred 1353 | . 100 450 100 . . . 703 Parts Sabotaged . | . . . . . . . . Parts Stolen . | . . . . . . . . Parts Stripped . | . . . . . . . . Power Chain Reactions . | . . . . . . . . Alert | -11 -10 -10 -9 -9 -9 -8 -8 ------- Run | Yrd Mat Min Mat Min Exi Min Mat Maximum Alert Level 1 | . . . . . . . 1 Low Security (%) 90 | 100 100 100 100 100 . 100 66 Level 1 9 | . . . . . . . 33 Level 2 . | . . . . . . . . Level 3 . | . . . . . . . . Level 4 . | . . . . . . . . Level 5 . | . . . . . . . . High Security . | . . . . . . . . Max Security . | . . . . . . . . Peak Influence 353 | . 60 75 186 147 . 95 353 Initial 31 | . . 16 . 31 . . 1 Average 49 | . 13 9 97 41 . 29 103 Influence Increases 1562 | . 84 242 278 173 . 180 605 Destroy 0b10 Robot/C 900 | . 60 180 140 100 . 140 280 Destroy 0b10 Robot/NC 75 | . 5 20 10 . . 10 30 Destroy Leader 196 | . 12 30 52 20 . 20 62 Allied During Kill 5 | . . . . . . 5 . Successful Hack 36 | . 7 . 7 7 . 3 12 Disable Machine 18 | . . . 9 . . . 9 Destroy Structure 152 | . . 12 30 31 . 2 77 Partial Spotted 30 | . . . 15 . . . 15 Lose Combat Pursuer 150 | . . . 15 15 . . 120 Influence Decreases 1331 | . 34 292 180 271 . 173 381 Entered New Map 107 | . . 34 . 67 . . 6 Time Decay 1126 | . 34 238 170 184 . 140 360 Lost Part 40 | . . . 10 20 . . 10 Lost Ally 58 | . . 20 . . . 33 5 Squads Dispatched 7 | . . . 3 1 . . 3 Investigation 2 | . . . 1 1 . . . Extermination . | . . . . . . . . Reinforcement 4 | . . . 2 . . . 2 Assault . | . . . . . . . . Garrison 1 | . . . . . . . 1 Intercept . | . . . . . . . . Searches Triggered . | . . . . . . . . Construction Impeded . | . . . . . . . . Haulers Reinforced . | . . . . . . . . Active Scanning Responses . | . . . . . . . . Cargo Convoy Interrupts . | . . . . . . . . Stealth | -11 -10 -10 -9 -9 -9 -8 -8 --------- Run | Yrd Mat Min Mat Min Exi Min Mat Distress Signals 4 | . . . 1 . . . 3 Communications Jammed . | . . . . . . . . Distress Signals . | . . . . . . . . Times Spotted 69 | . 7 11 10 6 . 4 31 Peak Tracking Total 7 | . 4 3 6 3 . 4 7 Tactical Retreats 6 | . . . 1 1 . . 4 Traps | -11 -10 -10 -9 -9 -9 -8 -8 ------- Run | Yrd Mat Min Mat Min Exi Min Mat Traps Triggered . | . . . . . . . . Indirectly . | . . . . . . . . Trap Hack Attempts . | . . . . . . . . Triggered . | . . . . . . . . Disarmed . | . . . . . . . . Reprogrammed . | . . . . . . . . Reused . | . . . . . . . . Traps Extracted . | . . . . . . . . Installed . | . . . . . . . . Triggered . | . . . . . . . . Machines | -11 -10 -10 -9 -9 -9 -8 -8 ---------- Run | Yrd Mat Min Mat Min Exi Min Mat Machines Disabled 2 | . . . 1 . . . 1 Max in Single Turn 1 | . . . 1 . . . 1 Garrison Access 1 | . . . . . . . 1 Machines Repaired . | . . . . . . . . Machines Dismantled . | . . . . . . . . Machines Sabotaged . | . . . . . . . . Overloaded Fab Kills . | . . . . . . . . Hacking | -11 -10 -10 -9 -9 -9 -8 -8 --------- Run | Yrd Mat Min Mat Min Exi Min Mat Machines Accessed 18 | . 1 1 3 3 5 1 4 Terminals 8 | . 1 1 2 1 . 1 2 Fabricators . | . . . . . . . . Repair Stations . | . . . . . . . . Recycling Units 1 | . . . 1 . . . . Scanalyzers 1 | . . . . . . . 1 Garrison Access 1 | . . . . . . . 1 Total Hacks 94 | . 3 6 9 5 50 3 18 Successful 74 | . 1 2 5 3 50 2 11 Failed 20 | . 2 4 4 2 . 1 7 Catastrophic 6 | . 1 1 3 . . 1 . Database Lockouts . | . . . . . . . . Manual 31 | . 3 5 9 4 1 1 8 Terminals 31 | . 3 6 6 3 . 3 10 Fabricators . | . . . . . . . . Repair Stations . | . . . . . . . . Recycling Units 3 | . . . 3 . . . . Scanalyzers 6 | . . . . . . . 6 Garrison Access 2 | . . . . . . . 2 Terminal Hacks 63 | . 1 2 2 3 50 2 3 Record 53 | . . 1 1 . 49 2 . Open Door 2 | . . . . 2 . . . Branch Access Points 4 | . 1 1 1 1 . . . Terminal Index 1 | . . . . . . . 1 Scanalyzer Index 1 | . . . . . . . 1 Hauler Manifests 1 | . . . . . . . 1 Proto ID Catalog 1 | . . . . . 1 . . Fabricator Hacks . | . . . . . . . . Repair Station Hacks . | . . . . . . . . Recycling Unit Hacks . | . . . . . . . . Scanalyzer 6 | . . . . . . . 6 Insert Component 3 | . . . . . . . 3 Analyze 3 | . . . . . . . 3 Garrison Access Hacks 1 | . . . . . . . 1 Seal Access 1 | . . . . . . . 1 Unauthorized Hacks 1 | . . . . . . . 1 Terminals 1 | . . . . . . . 1 Operators 1 | . . . . . . . 1 Fabricators . | . . . . . . . . Repair Stations . | . . . . . . . . Recycling Units . | . . . . . . . . Scanalyzers . | . . . . . . . . Garrison Access . | . . . . . . . . Data Cores Recovered 1 | . . . . . . . 1 Used . | . . . . . . . . Hacking Detections 9 | . 1 1 3 1 . 1 2 Full Trace Events 3 | . . 1 1 1 . . . Feedback Events 1 | . . 1 . . . . . Corruption 1 | . . 1 . . . . . Feedback Blocked . | . . . . . . . . Robot Schematics Acquired . | . . . . . . . . Robots Built . | . . . . . . . . Authchips . | . . . . . . . . Time . | . . . . . . . . Total Robot Build Rating . | . . . . . . . . Part Schematics Acquired 3 | . . . . . . . 3 Parts Built . | . . . . . . . . Authchips . | . . . . . . . . Time . | . . . . . . . . Total Part Build Rating . | . . . . . . . . Parts Repaired . | . . . . . . . . Time . | . . . . . . . . Parts Recycled . | . . . . . . . . Recycled Matter . | . . . . . . . . Retrieved Matter . | . . . . . . . . Retrieved Components . | . . . . . . . . Parts Scanalyzed 3 | . . . . . . . 3 Part Schematics Acquired 3 | . . . . . . . 3 Parts Damaged . | . . . . . . . . Bothacking | -11 -10 -10 -9 -9 -9 -8 -8 ------------ Run | Yrd Mat Min Mat Min Exi Min Mat Used RIF Installer . | . . . . . . . . Robots Hacked . | . . . . . . . . Non-combat . | . . . . . . . . Combat . | . . . . . . . . Robot Hacks Applied . | . . . . . . . . Relay Couplers Released . | . . . . . . . . Fabnet Peak Effective % . | . . . . . . . . Robots Rewired . | . . . . . . . . Allies Hacked . | . . . . . . . . Hacks Repelled . | . . . . . . . . Allies | -11 -10 -10 -9 -9 -9 -8 -8 -------- Run | Yrd Mat Min Mat Min Exi Min Mat Total Allies 7 | . . 2 . 5 . . . Largest Group 5 | . . 1 . 5 3 3 1 Highest-Rated Group 81 | . . 31 . 81 40 40 15 Highest-Rated Ally 31 | . . 31 . 31 16 16 15 Total Orders . | . . . . . . . . Ally Attacks 34 | . . 4 . . . 29 1 Total Damage 362 | . . 20 . . . 326 16 Kills 8 | . . 1 . . . 7 . Allies Corrupted . | . . . . . . . . Allies Melted . | . . . . . . . . Intel | -11 -10 -10 -9 -9 -9 -8 -8 ------- Run | Yrd Mat Min Mat Min Exi Min Mat Active Infowar (turns) 11 | . . . . . 2 9 . Cloaking 11 | . . . . . 2 9 . Robot Analysis Total . | . . . . . . . . Derelict Logs Recovered 3 | . . 1 . 2 . . . Drone Launches . | . . . . . . . . Drone Recoveries . | . . . . . . . . Exploration | -11 -10 -10 -9 -9 -9 -8 -8 ------------- Run | Yrd Mat Min Mat Min Exi Min Mat Turns Passed 4914 | 59 159 1643 369 690 260 455 1279 Spaces Moved 4629 | 44 112 1220 257 924 748 489 835 Core 12 | 12 . . . . . . . Treads . | . . . . . . . . Legs 1364 | 32 112 1220 . . . . . Wheels . | . . . . . . . . Hover . | . . . . . . . . Flight 3253 | . . . 257 924 748 489 835 Fastest Speed 29 | 50 120 120 29 29 29 29 29 Average Speed 61 | 100 120 120 30 46 29 29 37 Slowest Speed 120 | 120 120 120 109 112 29 112 108 Overloaded Moves . | . . . . . . . . Propulsion Burnouts . | . . . . . . . . Robots Hopped 12 | . . . 1 7 . 2 2 Potential Cave-ins 5 | . . . 5 . . . . Cave-ins Triggered . | . . . . . . . . Exploration Rate (%) 63 | 5 32 104 26 99 94 88 61 Regions Visited 7 Branch Regions 4 Pre-discovered Areas 2 | . . 1 . . 1 . . Known Exits Taken 3 | . 1 1 1 . . . . Unknown Exits Taken 4 | 1 . . . 1 1 1 . Scrap Searched 4 | . . 1 . 1 . 2 . Spaces Dug 27 | . . 5 20 . . . 2 Terrain Destroyed 216 | . . 16 58 42 . 2 98 Melee . | . . . . . . . . Projectile 42 | . . 6 22 . . 2 12 AOE 174 | . . 10 36 42 . . 86 Terrain Rammed . | . . . . . . . . Walls Destroyed . | . . . . . . . . Machines Disabled . | . . . . . . . . Actions | -11 -10 -10 -9 -9 -9 -8 -8 --------- Run | Yrd Mat Min Mat Min Exi Min Mat Total 6462 | 58 124 1347 432 1164 790 790 1757 Wait 1537 | . . 85 104 223 39 277 809 Move 4599 | 43 111 1219 254 910 747 484 831 Hop 11 | . . . 1 6 . 2 2 Pick Up 45 | 9 5 5 3 4 . 4 15 Fast Attach 1 | . . . . . 1 . . Attach 49 | 6 1 . 11 5 . 6 20 Detach 32 | . . . 6 3 1 4 18 Swap 23 | . . 6 5 . 1 3 8 Drop 31 | . . 6 4 1 1 3 16 Fire 133 | . 7 26 44 12 . 7 37 Melee 1 | . . . . . . . 1 Ram . | . . . . . . . . Kick . | . . . . . . . . Crush . | . . . . . . . . Escape Stasis . | . . . . . . . . Rewire . | . . . . . . . . Trap . | . . . . . . . . Miscellaneous . | . . . . . . . . Route ------- -11/Scrapyard -10/Materials (discovered 2 exits: *Min x2) -10/Mines (discovered 3 exits: *Mat x2 / *Sub) -9/Materials (discovered 4 exits: *Mat / *Min x2 / Sto) -9/Mines (discovered 4 exits: *Mat x2 / *Exi / [*Zio]) -9/Exiles (discovered 2 exits: *Min x2) -8/Mines (discovered 2 exits: *Mat x2) -8/Materials (discovered 2 exits: *Fac x2) History --------- Turn | Location | Event 9 | -11/Scrapyard | Discovered new exit (range 16) 60 | -11/Scrapyard | Entered Materials 124 | -10/Materials | Identified exit to Mines 219 | -10/Materials | Entered Mines 224 | -10/Mines | Escorted by a lone wolf Derelict 246 | -10/Mines | Learned location of Storage (-9) 303 | -10/Mines | Build established: Mutant 431 | -10/Mines | Discovered new exit (range 10) 753 | -10/Mines | Learned 2 Materials zone layouts 971 | -10/Mines | Found a damaged Exp. Sensor Array with a note attached 975 | -10/Mines | Found Prototype Device 1184 | -10/Mines | Discovered new exit (range 6) 1186 | -10/Mines | Received a Mining Laser from a helpful Derelict 1192 | -10/Mines | Identified exit to Materials 1747 | -10/Mines | Discovered new exit (range 6) 1757 | -10/Mines | Identified exit to Subcaves 1862 | -10/Mines | Entered Materials 1862 | -9/Materials | Evolved 2 slots: Propulsion x2 1940 | -9/Materials | Identified exit to Mines 1940 | -9/Materials | Identified exit to Storage 1940 | -9/Materials | Discovered new exit (range 16) 2231 | -9/Materials | Entered Mines 2271 | -9/Mines | Discovered new exit (range 9) 2461 | -9/Mines | A weapon hastily lodged in a ceiling crevice suddenly fell to the ground 2514 | -9/Mines | Met a Derelict shopkeep closing up shop 2537 | -9/Mines | Learned Materials trap positions 2811 | -9/Mines | Build established: Sprinter 2813 | -9/Mines | Assisted by bots powering up and referring to "LRC-V3" 2837 | -9/Mines | A Derelict revealed a hidden shortcut to a safe place 2850 | -9/Mines | Met a Derelict who couldn't figure out how to use a Trap Extractor 2857 | -9/Mines | Discovered new exit (range 7) 2897 | -9/Mines | Deemed a non-threat by the Exiles lab entrance 2897 | -9/Mines | Discovered new exit (range 5) 2921 | -9/Mines | Entered Exiles 2921 | -9/Exiles | Accompanied by 3 allies 2929 | -9/Exiles | Met 8R-AWN 2931 | -9/Exiles | Discovered new exit (range 14) 2946 | -9/Exiles | Met EX-HEX 2970 | -9/Exiles | Visited The Gauntlet 2994 | -9/Exiles | Met EX-DEC 3035 | -9/Exiles | Met EX-BIN 3044 | -9/Exiles | Aligned with FarCom system 3044 | -9/Exiles | Given EX-Vault access code 3057 | -9/Exiles | Opened EX-Vault 3059 | -9/Exiles | Found Cloak of Protection 3074 | -9/Exiles | Warned to stay clear of 0b10 Research branches 3084 | -9/Exiles | Learned location of Zion (-7) 3103 | -9/Exiles | Discovered new exit (range 14) 3181 | -9/Exiles | Left Exiles lab with Cloak of Protection 3181 | -9/Exiles | Entered Mines 3181 | -8/Mines | Accompanied by 3 allies 3296 | -8/Mines | Discovered new exit (range 7) 3591 | -8/Mines | Discovered new exit (range 9) 3636 | -8/Mines | Entered Materials 3636 | -8/Materials | Accompanied by 1 ally 3636 | -8/Materials | Evolved 2 slots: Utility x2 3637 | -8/Materials | Identified exit to Factory 3638 | -8/Materials | Loaded intel: 16 trap records 3759 | -8/Materials | Discovered exit to Factory (range 16) 4459 | -8/Materials | Garrison activated, responded to threat 4518 | -8/Materials | Destroyed 10 combat bots 4883 | -8/Materials | Build established: Mutant 4915 | -8/Materials | Self-destructed Last Messages --------------- ally. HV Slug penetrates O-16 Technician. O-16 Technician suffers critical hit (Destroy). Destroyed Hover Unit. O-16 Technician uses terminal to summon reinforcements. ALERT: Hostiles spotted, dispatching reinforcements to Terminal M005. O-16 Technician locks terminal. HV Slug penetrates Wall. O-16 Technician suffers critical hit (Destroy). Destroyed Hover Unit. O-16 Technician knocked back. HV Slug penetrates O-16 Technician. Destroyed Hacking Suite. O-16 Technician knocked back. HV Slug penetrates O-16 Technician. O-16 Technician suffers critical hit (Destroy). O-16 Technician destroyed. K-01 Serf collects debris. Map ----- +----------------------------------------------------+ | ????????????????????????????????????????????????? | | ????????????????????????????????????????????????? | | ????????????????????????????????????????????????? | | ????????????????????????????????????????????????? | | ????????????????????????????????????????????????? | | ????????????????????????????????????????????????? | | ????????????????????????????????????????????????? | | ????????????????????????????????????????????????? | | ????????????????????????????????????????????????? | | ????????????????????????????????????????????????? | | ????????????????????????????????????????????????? | | ????????????????????#???????????????????????????? | | ????????????????????# ????????????????????????? | | ????????????????????# ????????????????????????? | | ????????????????????# w????????????????????????? | | ????????????????????# ????Y???????????????????? | | ????????????????????# #???????????????????????? | | ????????????????????# w#???????????????????????? | | ????????????????????#g #???????????????????????? | | ????????????????????# g #???????????????????????? | | ????????????????????# g#???????????????????????? | | ????????????????????# #???????????????????????? | | ????????????????????# #????????####???????????? | | ?????????????######## ####### #???????????? | | ?????????????# # w#???????????? | | ?????????????# # @ r^ +???????????? | | ?????????????# "" # ^^ #???????????? | | ?????????????# S"" + ####### #???????????? | | ?????????????# "" # #??????????##???????????? | | ????????????## # r #????????? ?????????????? | | ????????????#""###### ######## #????????????? | | ????????????## ! T # # ! # /????????????? | | ?????????????#! # # # #????????????? | | ?????????????# [!!Y# % # """ # #????????????? | | ?????????????#! [! + + """ # #????????????? | | ?????????????# !! # # """ # #????????????? | | ?????????????# # # # #????????????? | | ?????????????#/###### #####+## ##???#???????? | | ??????????????????? gt "#??# ##? #???????? | | ?????????????????g # #?# # ## ##??????? | | ????????????????g ###?# ???? | | ???????????????? ###+####???# [ # #####?????? | | ??????????????? ????????????# # #?????? | | ?????????????? ?????????????# ] "" #?????? | | ?????????????#??????????????# ""S #?????? | | ??????????????^^^???????????# "" #?????? | | ????????????????????????????# !#?????? | | ????????????????????????????# ! #?????? | | ????????????????????????????# ########?????# | | ????????????????????????????#####+#####?????????# | +----------------------------------------------------+ Best States ------------- Heat Dissipation 31 Energy Generation 14 Energy Capacity 280 Matter Stores 300 Matter Capacity 300 Sight Range 16 Terrain Scan Density 10 Cloak Strength 5 Resistance: KI 20 Resistance: TH 20 Resistance: EX 20 Resistance: EM 20 Resistance: I 20 Resistance: S 20 Resistance: P 20 Evasion (%) 64 Offensive Hacking 10 Item Schematics ----------------- Cesium-ion Thruster | -8/Materials | Scanalyzed Datajack | -8/Materials | Scanalyzed Imp. Flight Unit | -8/Materials | Scanalyzed Robot Schematics ------------------ None Fabricated ------------ Nothing Repaired ---------- Nothing Alien Tech Used ----------------- None Achievements -------------- Quick And Dirty The More The Merrier True Hacker Challenges ------------ None Game ------ Seed ControlPointyPurifier Manual? 0 Play Time 01:05:51 Cumulative 6.6 hours Start 2025.05.07 @ 04:00:44 End 2025.05.07 @ 05:13:21 Sessions 1 Manual Loads 0 Difficulty Adventurer Special Mode None Game No. 9 Rogue 0 Adventurer 9 Explorer 0 Win Type - Total 0 Types 0/0/0/0/0/0/0/0/0/0 Lore% 17 Gallery% 9 Achievement% 14 Wizard Run 0 Options --------- Layout 2 ASCII 0 Keyboard 0 Movement Mouse Keybinds 0 Fullscreen 1 Font 24/Smallcaps Map View 50x44 Zoom Use 0% Tactical HUD 0 Map Filters NONE Filters NONE Steam 1 RUN: ccc9a426-8409-457f-a0c3-b9f6092bf764